Body,Body Name,Date,TransNo,Amount � (Excl VAT),Supplier name,Description,Expense Area,Expense Type,Expense Code,
http://statistics.data.gov.uk/id/local-authority/00BF,London Borough of Sutton,23/04/2016,1219539,20.00, OYSTER AUTOTOPUP,Local offer travel,Peoples Services Directorate,Travelling and Subsistence Allowances,A530,
http://statistics.data.gov.uk/id/local-authority/00BF,London Borough of Sutton,10/05/2016,1219012,179.15, CURRYS ONLINE,Freezer for Grange Play Centre,Peoples Services Directorate,Other Premises Costs,D715,
http://statistics.data.gov.uk/id/local-authority/00BF,London Borough of Sutton,09/05/2016,1219594,70.80, JS ONLINE GROCERY,After school weekly food shopping,Peoples Services Directorate,Provisions - General,F150,
http://statistics.data.gov.uk/id/local-authority/00BF,London Borough of Sutton,19/05/2016,1219594,27.12, ASDA SUPERSTORE,Storage containers for food and cleaning spray,Peoples Services Directorate,Provisions - General,F150,
http://statistics.data.gov.uk/id/local-authority/00BF,London Borough of Sutton,19/05/2016,1219594,9.67, ASDA SUPERSTORE,Food for After school club,Peoples Services Directorate,Provisions - General,F150,
http://statistics.data.gov.uk/id/local-authority/00BF,London Borough of Sutton,23/05/2016,1219594,46.85, JS ONLINE GROCERY,Food for After school club,Peoples Services Directorate,Provisions - General,F150,
http://statistics.data.gov.uk/id/local-authority/00BF,London Borough of Sutton,27/05/2016,1219594,12.50, SAINSBURYS DPASS,Yearly delivery pass for sainsburys,Peoples Services Directorate,Provisions - General,F150,
http://statistics.data.gov.uk/id/local-authority/00BF,London Borough of Sutton,01/04/2016,1219541,86.90, LONDON & SOUTH EAS,AK LAC visit/ review,Peoples Services Directorate,Travelling and Subsistence Allowances,A530,
http://statistics.data.gov.uk/id/local-authority/00BF,London Borough of Sutton,24/05/2016,1220155,18.50, GRO HM PASSPORT OFFICE,Copy Birth certificates fro KB,Peoples Services Directorate,Personal Requisites,F106,
http://statistics.data.gov.uk/id/local-authority/00BF,London Borough of Sutton,06/05/2016,1219643,85.83, THE LION HOTEL,Hotel for LH ( LC),Peoples Services Directorate,Personal Requisites,F106,
http://statistics.data.gov.uk/id/local-authority/00BF,London Borough of Sutton,05/04/2016,1219541,8.10, COSTA COFFEE-THORNTON,MB LAC visit,Peoples Services Directorate,Personal Requisites,F106,
http://statistics.data.gov.uk/id/local-authority/00BF,London Borough of Sutton,05/04/2016,1219541,15.67, MILL HOUSE,KB ending visit,Peoples Services Directorate,Personal Requisites,F106,
http://statistics.data.gov.uk/id/local-authority/00BF,London Borough of Sutton,11/05/2016,1219060,11.95, LAHORE SPICES,ACTIVITY WITH BH,Peoples Services Directorate,Personal Requisites,F106,
http://statistics.data.gov.uk/id/local-authority/00BF,London Borough of Sutton,19/05/2016,1219060,15.98, BURGER KING,ACTIVITY WITH PR,Peoples Services Directorate,Personal Requisites,F106,
http://statistics.data.gov.uk/id/local-authority/00BF,London Borough of Sutton,25/05/2016,1219060,7.90, MCDONALDS,ACTIVITY BA,Peoples Services Directorate,Personal Requisites,F106,
http://statistics.data.gov.uk/id/local-authority/00BF,London Borough of Sutton,27/05/2016,1219060,10.55, WIBBAS DOWN INN,ACTIVITY MD,Peoples Services Directorate,Personal Requisites,F106,
http://statistics.data.gov.uk/id/local-authority/00BF,London Borough of Sutton,14/04/2016,1219541,6.05, STARBUCKS,ZP ending visit,Peoples Services Directorate,Personal Requisites,F106,
http://statistics.data.gov.uk/id/local-authority/00BF,London Borough of Sutton,14/04/2016,1219541,16.00, HOTROCKS,KB ending visit,Peoples Services Directorate,Personal Requisites,F106,
http://statistics.data.gov.uk/id/local-authority/00BF,London Borough of Sutton,14/04/2016,1219541,21.95, NANDOS SUTTON,LT ending visit,Peoples Services Directorate,Personal Requisites,F106,
http://statistics.data.gov.uk/id/local-authority/00BF,London Borough of Sutton,17/05/2016,1219060,7.25, POST OFFICE COUNTER,POSTAGE OF TRAVEL DOCS BH,Peoples Services Directorate,Postages - General,F350,
http://statistics.data.gov.uk/id/local-authority/00BF,London Borough of Sutton,10/05/2016,1219643,22.49, WWW.STANSTEDAIRPORT.CO,Travel to Dundee ER & D,Peoples Services Directorate,C.C.A Travel & Subsistance,H212,
http://statistics.data.gov.uk/id/local-authority/00BF,London Borough of Sutton,10/05/2016,1219643,601.24, FLYBE 2674069865219,Parking for flight to Dundee,Peoples Services Directorate,C.C.A Travel & Subsistance,H212,
http://statistics.data.gov.uk/id/local-authority/00BF,London Borough of Sutton,13/05/2016,1219643,20.00, OYSTER AUTOTOPUP,Travel LCT,Peoples Services Directorate,C.C.A Travel & Subsistance,H212,
http://statistics.data.gov.uk/id/local-authority/00BF,London Borough of Sutton,13/05/2016,1219643,20.00, OYSTER BUS AUTOTOP,Travel LCT,Peoples Services Directorate,C.C.A Travel & Subsistance,H212,
http://statistics.data.gov.uk/id/local-authority/00BF,London Borough of Sutton,19/05/2016,1219643,20.00, OYSTER BUS AUTOTOP,Travel LCT,Peoples Services Directorate,C.C.A Travel & Subsistance,H212,
http://statistics.data.gov.uk/id/local-authority/00BF,London Borough of Sutton,26/05/2016,1219643,20.00, OYSTER BUS AUTOTOP,Travel LCT,Peoples Services Directorate,C.C.A Travel & Subsistance,H212,
http://statistics.data.gov.uk/id/local-authority/00BF,London Borough of Sutton,06/04/2016,1219541,560.00, THE CROFT HOTEL,JC accommodation,Peoples Services Directorate,Approved Lodgings,H323,
http://statistics.data.gov.uk/id/local-authority/00BF,London Borough of Sutton,12/04/2016,1219541,280.00, THE CROFT HOTEL,JC accommodation,Peoples Services Directorate,Approved Lodgings,H323,
http://statistics.data.gov.uk/id/local-authority/00BF,London Borough of Sutton,22/04/2016,1219541,280.00, THE CROFT HOTEL,JC accommodation,Peoples Services Directorate,Approved Lodgings,H323,
http://statistics.data.gov.uk/id/local-authority/00BF,London Borough of Sutton,25/05/2016,1219060,94.67, LINEN DIRECT,SETTING UP BA,Peoples Services Directorate,Set Up Costs - Children Leaving Care,H336,
http://statistics.data.gov.uk/id/local-authority/00BF,London Borough of Sutton,05/05/2016,1219643,200.83, BIG YELLOW S S SUTTON,Storage for Rochester LCT,Peoples Services Directorate,Personal Requisites,F106,
http://statistics.data.gov.uk/id/local-authority/00BF,London Borough of Sutton,25/05/2016,1219636,390.25, TRAINLINE,Train travel to attend conference staff,Peoples Services Directorate,Travelling and Subsistence Allowances,A530,
http://statistics.data.gov.uk/id/local-authority/00BF,London Borough of Sutton,19/05/2016,1219636,104.55, TRAINLINE,Train travel for visit to placement staff,Peoples Services Directorate,Travelling and Subsistence Allowances,A530,
http://statistics.data.gov.uk/id/local-authority/00BF,London Borough of Sutton,08/05/2016,1219636,20.00, OYSTER AUTOTOPUP,Staff oyster card top up RAS,Peoples Services Directorate,Travelling and Subsistence Allowances,A530,
http://statistics.data.gov.uk/id/local-authority/00BF,London Borough of Sutton,06/05/2016,1220195,10.00, LBSUTTON,LAC Birth certificate,Peoples Services Directorate,Personal Requisites,F106,
http://statistics.data.gov.uk/id/local-authority/00BF,London Borough of Sutton,09/05/2016,1219636,142.80, ONLINECARPETS.COUK,Purchase of carpets client,Peoples Services Directorate,Payments Under the Child Care Act 1980,H210,
http://statistics.data.gov.uk/id/local-authority/00BF,London Borough of Sutton,20/05/2016,1219636,48.25, TRAINLINE,Train travel for LAC Review staff,Peoples Services Directorate,Travelling and Subsistence Allowances,A530,
http://statistics.data.gov.uk/id/local-authority/00BF,London Borough of Sutton,20/05/2016,1219636,18.40, WWW.WIGHTLINK.CO.UK,Ferry ticker for LAC Review staff,Peoples Services Directorate,Travelling and Subsistence Allowances,A530,
http://statistics.data.gov.uk/id/local-authority/00BF,London Borough of Sutton,24/05/2016,1219636,78.74, TRAINLINE,Train travel for LAC Review staff,Peoples Services Directorate,Travelling and Subsistence Allowances,A530,
http://statistics.data.gov.uk/id/local-authority/00BF,London Borough of Sutton,24/05/2016,1219636,-25.50, TRAINLINE,Reimbursement of train travel staff,Peoples Services Directorate,Travelling and Subsistence Allowances,A530,
http://statistics.data.gov.uk/id/local-authority/00BF,London Borough of Sutton,10/05/2016,1219636,34.43, TRAINLINE,Train travel for PEP review staff,Peoples Services Directorate,Travelling and Subsistence Allowances,A530,
http://statistics.data.gov.uk/id/local-authority/00BF,London Borough of Sutton,11/05/2016,1219636,63.65, TRAINLINE,Train travel for LAC Visit staff,Peoples Services Directorate,Travelling and Subsistence Allowances,A530,
http://statistics.data.gov.uk/id/local-authority/00BF,London Borough of Sutton,12/05/2016,1219636,35.85, TRAINLINE,Train travel for CPA meeting staff,Peoples Services Directorate,Travelling and Subsistence Allowances,A530,
http://statistics.data.gov.uk/id/local-authority/00BF,London Borough of Sutton,12/05/2016,1219636,57.83, TRAINLINE,Train travel for CPA meeting staff,Peoples Services Directorate,Travelling and Subsistence Allowances,A530,
http://statistics.data.gov.uk/id/local-authority/00BF,London Borough of Sutton,16/05/2016,1219636,48.55, TRAINLINE,Train travel for LAC visit staff,Peoples Services Directorate,Travelling and Subsistence Allowances,A530,
http://statistics.data.gov.uk/id/local-authority/00BF,London Borough of Sutton,16/05/2016,1219636,23.10, TRAINLINE,Train travel for LAC Review staff,Peoples Services Directorate,Travelling and Subsistence Allowances,A530,
http://statistics.data.gov.uk/id/local-authority/00BF,London Borough of Sutton,16/05/2016,1219636,44.47, TRAINLINE,Train travel for LAC review staff,Peoples Services Directorate,Travelling and Subsistence Allowances,A530,
http://statistics.data.gov.uk/id/local-authority/00BF,London Borough of Sutton,17/05/2016,1219636,20.15, TRAINLINE,Train travel for LAC visit staff,Peoples Services Directorate,Travelling and Subsistence Allowances,A530,
http://statistics.data.gov.uk/id/local-authority/00BF,London Borough of Sutton,17/05/2016,1219636,28.20, TRAINLINE,Train travel for LAC visit staff,Peoples Services Directorate,Travelling and Subsistence Allowances,A530,
http://statistics.data.gov.uk/id/local-authority/00BF,London Borough of Sutton,17/05/2016,1219636,20.35, TRAINLINE,Train travel for PEP review staff,Peoples Services Directorate,Travelling and Subsistence Allowances,A530,
http://statistics.data.gov.uk/id/local-authority/00BF,London Borough of Sutton,27/05/2016,1219636,25.45, TRAINLINE,Train travel for LAC visit staff,Peoples Services Directorate,Travelling and Subsistence Allowances,A530,
http://statistics.data.gov.uk/id/local-authority/00BF,London Borough of Sutton,29/04/2016,1219636,32.79, TRAINLINE,Train travel for LAC visit staff,Peoples Services Directorate,Travelling and Subsistence Allowances,A530,
http://statistics.data.gov.uk/id/local-authority/00BF,London Borough of Sutton,29/04/2016,1219636,44.47, TRAINLINE,Train travel for LAC Review staff,Peoples Services Directorate,Travelling and Subsistence Allowances,A530,
http://statistics.data.gov.uk/id/local-authority/00BF,London Borough of Sutton,03/05/2016,1219636,77.83, TRAINLINE,Train travel for LAC visit staff,Peoples Services Directorate,Travelling and Subsistence Allowances,A530,
http://statistics.data.gov.uk/id/local-authority/00BF,London Borough of Sutton,03/05/2016,1219636,57.32, TRAINLINE,Train travel for LAC visit staff,Peoples Services Directorate,Travelling and Subsistence Allowances,A530,
http://statistics.data.gov.uk/id/local-authority/00BF,London Borough of Sutton,03/05/2016,1219636,34.73, TRAINLINE,Train travel staff for LAC visit,Peoples Services Directorate,Travelling and Subsistence Allowances,A530,
http://statistics.data.gov.uk/id/local-authority/00BF,London Borough of Sutton,28/05/2016,1220195,46.00, HM PASSPORT OFFICE,LAC Client Passport,Peoples Services Directorate,Personal Requisites,F106,
http://statistics.data.gov.uk/id/local-authority/00BF,London Borough of Sutton,28/05/2016,1220195,46.00, HM PASSPORT OFFICE,LAC Client Passport,Peoples Services Directorate,Personal Requisites,F106,
http://statistics.data.gov.uk/id/local-authority/00BF,London Borough of Sutton,11/05/2016,1219636,20.00, LBSUTTON,Purchase of birth certificates client,Peoples Services Directorate,Personal Requisites,F106,
http://statistics.data.gov.uk/id/local-authority/00BF,London Borough of Sutton,16/05/2016,1219636,-31.40, TRAINLINE,Reimbursement of train travel staff,Peoples Services Directorate,Personal Requisites,F106,
http://statistics.data.gov.uk/id/local-authority/00BF,London Borough of Sutton,17/05/2016,1219636,49.00, HM PASSPORT OFFICE,Purchase of passport client,Peoples Services Directorate,Personal Requisites,F106,
http://statistics.data.gov.uk/id/local-authority/00BF,London Borough of Sutton,17/05/2016,1219636,43.76, TRAINLINE,Train travel for LAC contact client,Peoples Services Directorate,Personal Requisites,F106,
http://statistics.data.gov.uk/id/local-authority/00BF,London Borough of Sutton,18/05/2016,1219636,14.60, WWW.WIGHTLINK.CO.UK,Ferry ticket for LAC visit staff,Peoples Services Directorate,Personal Requisites,F106,
http://statistics.data.gov.uk/id/local-authority/00BF,London Borough of Sutton,20/04/2016,1219539,10.00, LBSUTTON,Birth certificate,Peoples Services Directorate,Personal Requisites,F106,
http://statistics.data.gov.uk/id/local-authority/00BF,London Borough of Sutton,29/05/2016,1220195,-103.00, OYSTER RENEW WEB,LAC Client Travel (Oystercard not activated on time),Peoples Services Directorate,C.C.A Travel & Subsistance,H212,
http://statistics.data.gov.uk/id/local-authority/00BF,London Borough of Sutton,19/05/2016,1220195,113.00, OYSTER RENEW WEB,LAC Client travel,Peoples Services Directorate,C.C.A Travel & Subsistance,H212,
http://statistics.data.gov.uk/id/local-authority/00BF,London Borough of Sutton,25/05/2016,1220195,103.00, OYSTER RENEW WEB,LAC Client travel,Peoples Services Directorate,C.C.A Travel & Subsistance,H212,
http://statistics.data.gov.uk/id/local-authority/00BF,London Borough of Sutton,25/05/2016,1220195,10.00, OYSTER RENEW WEB,LAC Client travel,Peoples Services Directorate,C.C.A Travel & Subsistance,H212,
http://statistics.data.gov.uk/id/local-authority/00BF,London Borough of Sutton,25/05/2016,1220195,10.00, OYSTER RENEW WEB,LAC Client travel,Peoples Services Directorate,C.C.A Travel & Subsistance,H212,
http://statistics.data.gov.uk/id/local-authority/00BF,London Borough of Sutton,18/04/2016,1219539,103.00, NEW SOUTHERN RAILW,LAC team - client travel card,Peoples Services Directorate,C.C.A Travel & Subsistance,H212,
http://statistics.data.gov.uk/id/local-authority/00BF,London Borough of Sutton,24/05/2016,1219636,32.69, TRAINLINE,Train travel LAC visit staff,Peoples Services Directorate,Salaries - Basic Pay,A100,
http://statistics.data.gov.uk/id/local-authority/00BF,London Borough of Sutton,24/05/2016,1219636,30.85, TRAINLINE,Train travel LAC visit staff,Peoples Services Directorate,Agency Staff - Adecco,A300,
http://statistics.data.gov.uk/id/local-authority/00BF,London Borough of Sutton,09/05/2016,1219636,-19.50, TRAINLINE,Reimbursement of train travel staff,Peoples Services Directorate,Agency Staff - Adecco,A300,
http://statistics.data.gov.uk/id/local-authority/00BF,London Borough of Sutton,10/05/2016,1219636,97.61, TRAINLINE,Train travel for LAC visit staff,Peoples Services Directorate,Agency Staff - Adecco,A300,
http://statistics.data.gov.uk/id/local-authority/00BF,London Borough of Sutton,10/05/2016,1219636,98.94, TRAINLINE,Train travel for LAC visit staff,Peoples Services Directorate,Agency Staff - Adecco,A300,
http://statistics.data.gov.uk/id/local-authority/00BF,London Borough of Sutton,10/05/2016,1219636,144.33, TRAINLINE,Train travel for LAC visit staff,Peoples Services Directorate,Agency Staff - Adecco,A300,
http://statistics.data.gov.uk/id/local-authority/00BF,London Borough of Sutton,10/05/2016,1219636,-130.00, TRAINLINE,Reimbursement of train travel staff,Peoples Services Directorate,Agency Staff - Adecco,A300,
http://statistics.data.gov.uk/id/local-authority/00BF,London Borough of Sutton,10/05/2016,1219636,64.16, PREMIER INN44521700,Accommodation for LAC meeting staff,Peoples Services Directorate,Agency Staff - Adecco,A300,
http://statistics.data.gov.uk/id/local-authority/00BF,London Borough of Sutton,11/05/2016,1219636,97.61, TRAINLINE,Train travel for meeting staff,Peoples Services Directorate,Agency Staff - Adecco,A300,
http://statistics.data.gov.uk/id/local-authority/00BF,London Borough of Sutton,19/05/2016,1219636,44.68, TRAINLINE,Train travle for LAC visit staff,Peoples Services Directorate,Agency Staff - Adecco,A300,
http://statistics.data.gov.uk/id/local-authority/00BF,London Borough of Sutton,29/04/2016,1219636,122.49, PREMIER INN44529235,B&B accommodation client,Peoples Services Directorate,Agency Staff - Adecco,A300,
http://statistics.data.gov.uk/id/local-authority/00BF,London Borough of Sutton,04/05/2016,1219636,57.02, TRAINLINE,Train travel for LAC visit staff,Peoples Services Directorate,Agency Staff - Adecco,A300,
http://statistics.data.gov.uk/id/local-authority/00BF,London Borough of Sutton,13/05/2016,1219544,199.00, UKBA4625404214,Certificate of sponsoership - TR,Peoples Services Directorate,Staff Advertising,A500,
http://statistics.data.gov.uk/id/local-authority/00BF,London Borough of Sutton,13/05/2016,1219544,199.00, UKBA4625412635,Certificate of sponsorship - EM,Peoples Services Directorate,Staff Advertising,A500,
http://statistics.data.gov.uk/id/local-authority/00BF,London Borough of Sutton,13/05/2016,1219544,199.00, UKBA4625414785,Certificate of sponsorship - PM,Peoples Services Directorate,Staff Advertising,A500,
http://statistics.data.gov.uk/id/local-authority/00BF,London Borough of Sutton,13/05/2016,1219544,199.00, UKBA4625409888,Certificate of Sonsorship - SM,Peoples Services Directorate,Staff Advertising,A500,
http://statistics.data.gov.uk/id/local-authority/00BF,London Borough of Sutton,13/05/2016,1219544,199.00, UKBA4625411029,Certificate of Sponsorship - MB,Peoples Services Directorate,Staff Advertising,A500,
http://statistics.data.gov.uk/id/local-authority/00BF,London Borough of Sutton,23/05/2016,1220195,78.44, TRAINLINE,Court Team staff Travel,Peoples Services Directorate,Travelling and Subsistence Allowances,A530,
http://statistics.data.gov.uk/id/local-authority/00BF,London Borough of Sutton,23/05/2016,1220195,74.26, TRAINLINE,Court Team Staff Travel,Peoples Services Directorate,Travelling and Subsistence Allowances,A530,
http://statistics.data.gov.uk/id/local-authority/00BF,London Borough of Sutton,22/05/2016,1219636,20.00, OYSTER BUS AUTOTOP,Staff Oyster Card top up FSCP2,Peoples Services Directorate,Travelling and Subsistence Allowances,A530,
http://statistics.data.gov.uk/id/local-authority/00BF,London Borough of Sutton,25/05/2016,1219636,20.00, OYSTER BUS AUTOTOP,Staff oyster card top up,Peoples Services Directorate,Travelling and Subsistence Allowances,A530,
http://statistics.data.gov.uk/id/local-authority/00BF,London Borough of Sutton,25/05/2016,1219636,39.54, TRAVELODGE WEBSITE,O/Night accomm to attend Meeting staff,Peoples Services Directorate,Travelling and Subsistence Allowances,A530,
http://statistics.data.gov.uk/id/local-authority/00BF,London Borough of Sutton,25/05/2016,1219636,47.87, TRAVELODGE WEBSITE,O/Night accomm to attend Meeting staff,Peoples Services Directorate,Travelling and Subsistence Allowances,A530,
http://statistics.data.gov.uk/id/local-authority/00BF,London Borough of Sutton,25/05/2016,1219636,-37.87, TRAVELODGE WEBSITE,Reimbursement of O/Night accommodation,Peoples Services Directorate,Travelling and Subsistence Allowances,A530,
http://statistics.data.gov.uk/id/local-authority/00BF,London Borough of Sutton,11/05/2016,1219636,28.92, TRAINLINE,Train travel for LAC Meeting Staff,Peoples Services Directorate,Travelling and Subsistence Allowances,A530,
http://statistics.data.gov.uk/id/local-authority/00BF,London Borough of Sutton,12/05/2016,1219636,20.00, OYSTER BUS AUTOTOP,Staff Oyster card top up Court Team,Peoples Services Directorate,Travelling and Subsistence Allowances,A530,
http://statistics.data.gov.uk/id/local-authority/00BF,London Borough of Sutton,12/05/2016,1219636,20.00, OYSTER BUS AUTOTOP,Staff Oyster card top up Court Team,Peoples Services Directorate,Travelling and Subsistence Allowances,A530,
http://statistics.data.gov.uk/id/local-authority/00BF,London Borough of Sutton,14/05/2016,1219636,20.00, OYSTER BUS AUTOTOP,Staff Oyster card top up Court Team,Peoples Services Directorate,Travelling and Subsistence Allowances,A530,
http://statistics.data.gov.uk/id/local-authority/00BF,London Borough of Sutton,15/05/2016,1219636,20.00, OYSTER AUTOTOPUP,Staff Oyster card top up Court Team,Peoples Services Directorate,Travelling and Subsistence Allowances,A530,
http://statistics.data.gov.uk/id/local-authority/00BF,London Borough of Sutton,16/05/2016,1219636,29.83, TRAINLINE,Train travel for LAC visit staff,Peoples Services Directorate,Travelling and Subsistence Allowances,A530,
http://statistics.data.gov.uk/id/local-authority/00BF,London Borough of Sutton,17/05/2016,1219636,20.00, OYSTER AUTOTOPUP,Staff oyster card top up FSCP2,Peoples Services Directorate,Travelling and Subsistence Allowances,A530,
http://statistics.data.gov.uk/id/local-authority/00BF,London Borough of Sutton,26/05/2016,1219636,20.00, OYSTER AUTOTOPUP,Staff Oyster card top up FSCP3,Peoples Services Directorate,Travelling and Subsistence Allowances,A530,
http://statistics.data.gov.uk/id/local-authority/00BF,London Borough of Sutton,26/05/2016,1219636,29.83, TRAINLINE,Train travel for LAC visit staff,Peoples Services Directorate,Travelling and Subsistence Allowances,A530,
http://statistics.data.gov.uk/id/local-authority/00BF,London Borough of Sutton,27/05/2016,1219636,20.00, OYSTER AUTOTOPUP,Staff Oyster card top up Court Team,Peoples Services Directorate,Travelling and Subsistence Allowances,A530,
http://statistics.data.gov.uk/id/local-authority/00BF,London Borough of Sutton,28/05/2016,1219636,20.00, OYSTER AUTOTOPUP,Staff Oyster card top up Court Team,Peoples Services Directorate,Travelling and Subsistence Allowances,A530,
http://statistics.data.gov.uk/id/local-authority/00BF,London Borough of Sutton,29/05/2016,1219636,20.00, OYSTER BUS AUTOTOP,Staff Oyster card top up Court Team,Peoples Services Directorate,Travelling and Subsistence Allowances,A530,
http://statistics.data.gov.uk/id/local-authority/00BF,London Borough of Sutton,18/05/2016,1219636,20.00, OYSTER BUS AUTOTOP,Staff Oyster card top up Court Team,Peoples Services Directorate,Travelling and Subsistence Allowances,A530,
http://statistics.data.gov.uk/id/local-authority/00BF,London Borough of Sutton,20/05/2016,1219636,20.00, OYSTER AUTOTOPUP,Staff oyster card top up FSCP2,Peoples Services Directorate,Travelling and Subsistence Allowances,A530,
http://statistics.data.gov.uk/id/local-authority/00BF,London Borough of Sutton,30/04/2016,1219636,20.00, OYSTER AUTOTOPUP,Staff oyster card top-up Court Team,Peoples Services Directorate,Travelling and Subsistence Allowances,A530,
http://statistics.data.gov.uk/id/local-authority/00BF,London Borough of Sutton,30/04/2016,1219636,20.00, OYSTER BUS AUTOTOP,Staff oyster card top-up FSCP,Peoples Services Directorate,Travelling and Subsistence Allowances,A530,
http://statistics.data.gov.uk/id/local-authority/00BF,London Borough of Sutton,30/04/2016,1219636,20.00, OYSTER BUS AUTOTOP,Staff oyster card top-up  FSCP,Peoples Services Directorate,Travelling and Subsistence Allowances,A530,
http://statistics.data.gov.uk/id/local-authority/00BF,London Borough of Sutton,30/04/2016,1219636,20.00, OYSTER BUS AUTOTOP,Staff oyster card top-up FSCP,Peoples Services Directorate,Travelling and Subsistence Allowances,A530,
http://statistics.data.gov.uk/id/local-authority/00BF,London Borough of Sutton,11/04/2016,1219539,18.31, TRAINLINE,Court Team Staff Travel,Peoples Services Directorate,Travelling and Subsistence Allowances,A530,
http://statistics.data.gov.uk/id/local-authority/00BF,London Borough of Sutton,10/05/2016,1219636,-41.00, WANDSWORTH COUNCIL INT,Reimbursement of cost of birth certificate client,Peoples Services Directorate,Payments Under the Child Care Act 1980,H210,
http://statistics.data.gov.uk/id/local-authority/00BF,London Borough of Sutton,10/05/2016,1219636,-41.00, WANDSWORTH COUNCIL INT,Reimbursement of cost of birth certificate client,Peoples Services Directorate,Payments Under the Child Care Act 1980,H210,
http://statistics.data.gov.uk/id/local-authority/00BF,London Borough of Sutton,10/05/2016,1219636,-41.00, WANDSWORTH COUNCIL INT,Reimbursement of cost of birth certificate client,Peoples Services Directorate,Payments Under the Child Care Act 1980,H210,
http://statistics.data.gov.uk/id/local-authority/00BF,London Borough of Sutton,10/05/2016,1219636,-41.00, WANDSWORTH COUNCIL INT,Reimbursement of cost of birth certificate client,Peoples Services Directorate,Payments Under the Child Care Act 1980,H210,
http://statistics.data.gov.uk/id/local-authority/00BF,London Borough of Sutton,10/05/2016,1219636,-40.00, WANDSWORTH COUNCIL INT,Reimbursement of cost of birth certificate client,Peoples Services Directorate,Payments Under the Child Care Act 1980,H210,
http://statistics.data.gov.uk/id/local-authority/00BF,London Borough of Sutton,11/05/2016,1219636,11.00, WWW.WANDSWORTH.GOV.UK,Purchase of birth certificate client,Peoples Services Directorate,Payments Under the Child Care Act 1980,H210,
http://statistics.data.gov.uk/id/local-authority/00BF,London Borough of Sutton,17/05/2016,1219636,10.00, LBSUTTON,Purchase of birth certificate client,Peoples Services Directorate,Payments Under the Child Care Act 1980,H210,
http://statistics.data.gov.uk/id/local-authority/00BF,London Borough of Sutton,19/05/2016,1219636,-11.00, WANDSWORTH COUNCIL INT,Reimbursement of cost of birth certificate client,Peoples Services Directorate,Payments Under the Child Care Act 1980,H210,
http://statistics.data.gov.uk/id/local-authority/00BF,London Borough of Sutton,20/05/2016,1219636,29.95, WWW.ANAWIZ.COM,Breast pump hire client,Peoples Services Directorate,Payments Under the Child Care Act 1980,H210,
http://statistics.data.gov.uk/id/local-authority/00BF,London Borough of Sutton,06/05/2016,1219636,30.00, LBSUTTON,Purchase of birth certificates client,Peoples Services Directorate,Payments Under the Child Care Act 1980,H210,
http://statistics.data.gov.uk/id/local-authority/00BF,London Borough of Sutton,06/05/2016,1219636,30.00, LBSUTTON,Purchase of birth certificates client,Peoples Services Directorate,Payments Under the Child Care Act 1980,H210,
http://statistics.data.gov.uk/id/local-authority/00BF,London Borough of Sutton,20/05/2016,1220195,391.60, DHL,Court Team Overseas Package,Peoples Services Directorate,C.C.A Travel & Subsistance,H212,
http://statistics.data.gov.uk/id/local-authority/00BF,London Borough of Sutton,23/05/2016,1220195,108.63, TRAINLINE,Court Team Client Travel,Peoples Services Directorate,C.C.A Travel & Subsistance,H212,
http://statistics.data.gov.uk/id/local-authority/00BF,London Borough of Sutton,23/05/2016,1220195,204.51, TRAINLINE,Court Team Client Travel,Peoples Services Directorate,C.C.A Travel & Subsistance,H212,
http://statistics.data.gov.uk/id/local-authority/00BF,London Borough of Sutton,26/05/2016,1220195,110.47, TRAINLINE,Court Team Client Travel,Peoples Services Directorate,C.C.A Travel & Subsistance,H212,
http://statistics.data.gov.uk/id/local-authority/00BF,London Borough of Sutton,26/05/2016,1219636,65.89, TRAINLINE,Train travel for Court attendance client,Peoples Services Directorate,C.C.A Travel & Subsistance,H212,
http://statistics.data.gov.uk/id/local-authority/00BF,London Borough of Sutton,18/05/2016,1219636,141.83, TRAVELODGE AGENT,O/Night accomm to attend Court client,Peoples Services Directorate,C.C.A Travel & Subsistance,H212,
http://statistics.data.gov.uk/id/local-authority/00BF,London Borough of Sutton,18/05/2016,1219636,65.89, TRAINLINE,Train travel to attend Court client,Peoples Services Directorate,C.C.A Travel & Subsistance,H212,
http://statistics.data.gov.uk/id/local-authority/00BF,London Borough of Sutton,18/05/2016,1219636,194.62, TRAINLINE,Train travel to attend Court client,Peoples Services Directorate,C.C.A Travel & Subsistance,H212,
http://statistics.data.gov.uk/id/local-authority/00BF,London Borough of Sutton,18/05/2016,1219636,359.86, TRAINLINE,Train travel to attend Court client,Peoples Services Directorate,C.C.A Travel & Subsistance,H212,
http://statistics.data.gov.uk/id/local-authority/00BF,London Borough of Sutton,18/05/2016,1219636,120.97, TRAINLINE,Train travel to attend Court client,Peoples Services Directorate,C.C.A Travel & Subsistance,H212,
http://statistics.data.gov.uk/id/local-authority/00BF,London Borough of Sutton,18/05/2016,1219636,49.17, BRITANNIA,O/Night accomm to attend Court client,Peoples Services Directorate,C.C.A Travel & Subsistance,H212,
http://statistics.data.gov.uk/id/local-authority/00BF,London Borough of Sutton,18/05/2016,1219636,63.33, BRITANNIA,O/Night accomm to attend Court client,Peoples Services Directorate,C.C.A Travel & Subsistance,H212,
http://statistics.data.gov.uk/id/local-authority/00BF,London Borough of Sutton,16/05/2016,1219636,286.92, ARGOS RETAIL GROUP,Purchase of furniture client,Peoples Services Directorate,C.C.A Household Equip & Maint,H214,
http://statistics.data.gov.uk/id/local-authority/00BF,London Borough of Sutton,26/05/2016,1219636,124.98, ARGOS RETAIL GROUP,Purchase of cot & Mattress for client,Peoples Services Directorate,C.C.A Household Equip & Maint,H214,
http://statistics.data.gov.uk/id/local-authority/00BF,London Borough of Sutton,13/05/2016,1219636,18.50, GRO HM PASSPORT OFFICE,Purchase of birth certificates client,Peoples Services Directorate,Personal Requisites,F106,
http://statistics.data.gov.uk/id/local-authority/00BF,London Borough of Sutton,26/05/2016,1219636,10.17, LAMBETH INTERNET PAYM,Purchase of birth certificates client,Peoples Services Directorate,Personal Requisites,F106,
http://statistics.data.gov.uk/id/local-authority/00BF,London Borough of Sutton,18/05/2016,1219636,10.00, LBSUTTON,Purchase of birth certificate client,Peoples Services Directorate,Personal Requisites,F106,
http://statistics.data.gov.uk/id/local-authority/00BF,London Borough of Sutton,29/04/2016,1219636,90.00, HM PASSPORT,Passport purchase client,Peoples Services Directorate,Personal Requisites,F106,
http://statistics.data.gov.uk/id/local-authority/00BF,London Borough of Sutton,29/04/2016,1219636,60.00, TRAVELODGE WEBSITE,B&B accommodation client,Peoples Services Directorate,Personal Requisites,F106,
http://statistics.data.gov.uk/id/local-authority/00BF,London Borough of Sutton,06/05/2016,1219636,20.00, LBSUTTON,Purchase of birth certificates client,Peoples Services Directorate,Personal Requisites,F106,
http://statistics.data.gov.uk/id/local-authority/00BF,London Borough of Sutton,06/05/2016,1219636,20.00, LBSUTTON,Purchase of birth certificates client,Peoples Services Directorate,Personal Requisites,F106,
http://statistics.data.gov.uk/id/local-authority/00BF,London Borough of Sutton,06/05/2016,1219636,46.80, GRO HM PASSPORT OFFICE,Purchase of birth certificates client,Peoples Services Directorate,Personal Requisites,F106,
http://statistics.data.gov.uk/id/local-authority/00BF,London Borough of Sutton,06/05/2016,1219636,41.00, WWW.WANDSWORTH.GOV.UK,Purchase of birth certificates client,Peoples Services Directorate,Personal Requisites,F106,
http://statistics.data.gov.uk/id/local-authority/00BF,London Borough of Sutton,05/05/2016,1219636,10.00, LBSUTTON,Birth certificate purchase client,Peoples Services Directorate,Personal Requisites,F106,
http://statistics.data.gov.uk/id/local-authority/00BF,London Borough of Sutton,05/05/2016,1219636,72.50, HM PASSPORT OFFICE,Passport purchase client,Peoples Services Directorate,Personal Requisites,F106,
http://statistics.data.gov.uk/id/local-authority/00BF,London Borough of Sutton,10/05/2016,1219636,28.71, TRAINLINE,One day travelcard for meeting staff,Peoples Services Directorate,Travelling and Subsistence Allowances,A530,
http://statistics.data.gov.uk/id/local-authority/00BF,London Borough of Sutton,17/05/2016,1219636,36.87, TRAINLINE,train travel for Adoption visit staff,Peoples Services Directorate,Travelling and Subsistence Allowances,A530,
http://statistics.data.gov.uk/id/local-authority/00BF,London Borough of Sutton,20/05/2016,1219636,18.40, WWW.WIGHTLINK.CO.UK,Ferry ticket for LAC Review staff,Peoples Services Directorate,Travelling and Subsistence Allowances,A530,
http://statistics.data.gov.uk/id/local-authority/00BF,London Borough of Sutton,24/05/2016,1219636,86.60, TRAINLINE,Train travel for LAC Review staff,Peoples Services Directorate,Travelling and Subsistence Allowances,A530,
http://statistics.data.gov.uk/id/local-authority/00BF,London Borough of Sutton,10/05/2016,1219636,108.12, TRAINLINE,Train travel for LAC review staff,Peoples Services Directorate,Travelling and Subsistence Allowances,A530,
http://statistics.data.gov.uk/id/local-authority/00BF,London Borough of Sutton,20/05/2016,1219636,40.49, TRAINLINE,Train travel for LAC Review staff,Peoples Services Directorate,Travelling and Subsistence Allowances,A530,
http://statistics.data.gov.uk/id/local-authority/00BF,London Borough of Sutton,05/05/2016,1219636,24.53, TRAINLINE,Train travel for LAC meeting Staff,Peoples Services Directorate,Travelling and Subsistence Allowances,A530,
http://statistics.data.gov.uk/id/local-authority/00BF,London Borough of Sutton,04/05/2016,1219636,135.15, TRAINLINE,Train travel for LAC Review staff,Peoples Services Directorate,Travelling and Subsistence Allowances,A530,
http://statistics.data.gov.uk/id/local-authority/00BF,London Borough of Sutton,04/04/2016,1219539,89.35, TRAINLINE,IRO staff travel,Peoples Services Directorate,Travelling and Subsistence Allowances,A530,
http://statistics.data.gov.uk/id/local-authority/00BF,London Borough of Sutton,13/05/2016,1219643,250.00, WM MORRISONS,Vouchers for NRPF SFC,Peoples Services Directorate,Personal Requisites,F106,
http://statistics.data.gov.uk/id/local-authority/00BF,London Borough of Sutton,06/05/2016,1219643,61.88, TESCO STORES 5999,Subsistence for SFC,Peoples Services Directorate,Provisions - General,F150,
http://statistics.data.gov.uk/id/local-authority/00BF,London Borough of Sutton,06/05/2016,1220195,118.52, TRAINLINE,CWD Staff Travel,Peoples Services Directorate,Travelling and Subsistence Allowances,A530,
http://statistics.data.gov.uk/id/local-authority/00BF,London Borough of Sutton,06/05/2016,1220195,19.43, TRAINLINE,CWD Staff Travel,Peoples Services Directorate,Travelling and Subsistence Allowances,A530,
http://statistics.data.gov.uk/id/local-authority/00BF,London Borough of Sutton,12/05/2016,1220195,10.51, TRAINLINE,CWD Staff Travel,Peoples Services Directorate,Travelling and Subsistence Allowances,A530,
http://statistics.data.gov.uk/id/local-authority/00BF,London Borough of Sutton,16/05/2016,1220195,19.43, TRAINLINE,CWD Staff Travel,Peoples Services Directorate,Travelling and Subsistence Allowances,A530,
http://statistics.data.gov.uk/id/local-authority/00BF,London Borough of Sutton,14/04/2016,1219539,118.52, TRAINLINE,CWD staff travel,Peoples Services Directorate,Travelling and Subsistence Allowances,A530,
http://statistics.data.gov.uk/id/local-authority/00BF,London Borough of Sutton,17/04/2016,1219539,20.00, OYSTER BUS AUTOTOP,CWD Oystercard,Peoples Services Directorate,Travelling and Subsistence Allowances,A530,
http://statistics.data.gov.uk/id/local-authority/00BF,London Borough of Sutton,21/04/2016,1219539,18.31, TRAINLINE,CWD staff travel,Peoples Services Directorate,Travelling and Subsistence Allowances,A530,
http://statistics.data.gov.uk/id/local-authority/00BF,London Borough of Sutton,22/04/2016,1219539,20.00, OYSTER BUS AUTOTOP,CWD staff travel,Peoples Services Directorate,Travelling and Subsistence Allowances,A530,
http://statistics.data.gov.uk/id/local-authority/00BF,London Borough of Sutton,26/04/2016,1219539,40.85, TRAINLINE,CWD staff travel,Peoples Services Directorate,Travelling and Subsistence Allowances,A530,
http://statistics.data.gov.uk/id/local-authority/00BF,London Borough of Sutton,28/04/2016,1219539,21.98, TRAINLINE,CWD staff travel,Peoples Services Directorate,Travelling and Subsistence Allowances,A530,
http://statistics.data.gov.uk/id/local-authority/00BF,London Borough of Sutton,26/05/2016,1219636,30.00, LBSUTTON,Purchase of birth certificates client,Peoples Services Directorate,General Office Expenses,F235,
http://statistics.data.gov.uk/id/local-authority/00BF,London Borough of Sutton,10/05/2016,1219546,30.35, TRAINLINE,London to Banbury return - LR,Peoples Services Directorate,Staff Travelling Expenses,E130,
http://statistics.data.gov.uk/id/local-authority/00BF,London Borough of Sutton,11/05/2016,1219546,89.35, TRAINLINE,London to Chester return - HK,Peoples Services Directorate,Staff Travelling Expenses,E130,
http://statistics.data.gov.uk/id/local-authority/00BF,London Borough of Sutton,24/05/2016,1219546,108.12, TRAINLINE,London to Exeter return - RZ,Peoples Services Directorate,Staff Travelling Expenses,E130,
http://statistics.data.gov.uk/id/local-authority/00BF,London Borough of Sutton,25/05/2016,1219546,97.92, TRAINLINE,London to Manchester return - RZ,Peoples Services Directorate,Staff Travelling Expenses,E130,
http://statistics.data.gov.uk/id/local-authority/00BF,London Borough of Sutton,20/05/2016,1219012,3.01, Amazon UK Marketplace,Dice x 24 for Traveller Service,Peoples Services Directorate,Materials - General,F100,
http://statistics.data.gov.uk/id/local-authority/00BF,London Borough of Sutton,21/05/2016,1219012,32.18, Amazon UK Marketplace,Multi Purpose Folding Trolley for Traveller Service,Peoples Services Directorate,Materials - General,F100,
http://statistics.data.gov.uk/id/local-authority/00BF,London Borough of Sutton,21/05/2016,1219012,17.74, Amazon UK Marketplace,Lined exercise books,Peoples Services Directorate,Materials - General,F100,
http://statistics.data.gov.uk/id/local-authority/00BF,London Borough of Sutton,22/05/2016,1219012,2.00, Amazon UK Marketplace,Purchase of pack of 100 counters x 2 for Traveller Service,Peoples Services Directorate,Materials - General,F100,
http://statistics.data.gov.uk/id/local-authority/00BF,London Borough of Sutton,04/05/2016,1220156,-36.00, MAJESTIC WINE,Refund on catering,Peoples Services Directorate,Other Services,F340,
http://statistics.data.gov.uk/id/local-authority/00BF,London Borough of Sutton,08/05/2016,1219862,20.00, OYSTER BUS AUTOTOP,Oyster Autotopup - automatic top up of staff Oyster card. Date ordered: 8/5/2016,Peoples Services Directorate,Travelling and Subsistence Allowances,A530,
http://statistics.data.gov.uk/id/local-authority/00BF,London Borough of Sutton,03/05/2016,1219862,0.01, LONDON BRGH OF SUTTON,Training staff on hand held CC machine purchase date 3/5/2016,Peoples Services Directorate,Books,F006,
http://statistics.data.gov.uk/id/local-authority/00BF,London Borough of Sutton,03/05/2016,1219862,0.01, LONDON BRGH OF SUTTON,Training staff on hand held CC machine purchase date 3/5/2016,Peoples Services Directorate,Books,F006,
http://statistics.data.gov.uk/id/local-authority/00BF,London Borough of Sutton,03/05/2016,1219862,0.01, LONDON BRGH OF SUTTON,Training staff on hand held CC machine purchase date 3/5/2016,Peoples Services Directorate,Books,F006,
http://statistics.data.gov.uk/id/local-authority/00BF,London Borough of Sutton,03/05/2016,1219862,4.00, PAYPAL *CURRANTBUN1,Photo of Cheam Charter Fair for Local Studies collection from KA purchased 3/5/2016,Peoples Services Directorate,Books,F006,
http://statistics.data.gov.uk/id/local-authority/00BF,London Borough of Sutton,04/05/2016,1219862,9.00, WILKO RETAIL LIMIT,Purchase from Wilko of mugs for library volunteers,Peoples Services Directorate,Books,F006,
http://statistics.data.gov.uk/id/local-authority/00BF,London Borough of Sutton,22/05/2016,1219862,21.65, PAYPAL *KEITHHANN,Postcard of Coppen's shop for Local Studies collection from Keith Hann 22/5/2016,Peoples Services Directorate,Books,F006,
http://statistics.data.gov.uk/id/local-authority/00BF,London Borough of Sutton,23/05/2016,1219862,8.83, PAYPAL *JANBRADLEY2,Stereo card of Beddington Church for Local Studies collection from Jan Bradley  23/5/2016,Peoples Services Directorate,Books,F006,
http://statistics.data.gov.uk/id/local-authority/00BF,London Borough of Sutton,28/05/2016,1219862,14.99, PAYPAL *SUNNYSMUM,P/C of The Rose PH for Local Studies Collection from EW purchased 28/5/2016,Peoples Services Directorate,Books,F006,
http://statistics.data.gov.uk/id/local-authority/00BF,London Borough of Sutton,28/05/2016,1219862,9.00, PAYPAL *BKP1965,P/C of WW2 219 Squadron Sutton & Cheam for Local studies collection from BP 28/5/2016,Peoples Services Directorate,Books,F006,
http://statistics.data.gov.uk/id/local-authority/00BF,London Borough of Sutton,03/05/2016,1220156,9.36, WWW.MILKANDMORE.CO.UK,Milk for Whitehall tea room,Peoples Services Directorate,Provisions - General,F150,
http://statistics.data.gov.uk/id/local-authority/00BF,London Borough of Sutton,18/05/2016,1219005,49.06, TESCO STORE 2812,Citizenship refreshments,Resources Directorate,Hospitality (VAT not Recoverable),F325,
http://statistics.data.gov.uk/id/local-authority/00BF,London Borough of Sutton,11/05/2016,1219862,18.69, PAYPAL *ARGOSLIMITE,Purchase from Argos of steps for Past on Glass project 11/5/2016,Peoples Services Directorate,Furniture - Purchase,F080,
http://statistics.data.gov.uk/id/local-authority/00BF,London Borough of Sutton,09/05/2016,1219962,41.70, MAPLIN SUTTON SM1,10m HDMI lead for projector,"Environment, Housing & Regeneration Directorate",IT Equipment - Repair and Maintenance,F382,
http://statistics.data.gov.uk/id/local-authority/00BF,London Borough of Sutton,16/05/2016,1219159,191.66, CURRYS ONLINE,FREEZER NEEDED TO STORE DECEASED CATS - STREETS,"Environment, Housing & Regeneration Directorate",Materials - General,F100,
http://statistics.data.gov.uk/id/local-authority/00BF,London Borough of Sutton,19/05/2016,1219159,275.00, WWW.LONDONCOUNCILS.GOV,PENALTY FINE - RESTRICTED ROUTE - VN63 AYG,"Environment, Housing & Regeneration Directorate",Miscellaneous Expenses,F620,
http://statistics.data.gov.uk/id/local-authority/00BF,London Borough of Sutton,19/05/2016,1219159,275.00, WWW.LONDONCOUNCILS.GOV,PENALTY FINE - RESTRICTED ROUTE - VX05 EYK,"Environment, Housing & Regeneration Directorate",Miscellaneous Expenses,F620,
http://statistics.data.gov.uk/id/local-authority/00BF,London Borough of Sutton,19/05/2016,1219159,275.00, WWW.LONDONCOUNCILS.GOV,PENALTY FINE - RESTRICTED ROUTE - VN63 AYB,"Environment, Housing & Regeneration Directorate",Miscellaneous Expenses,F620,
http://statistics.data.gov.uk/id/local-authority/00BF,London Borough of Sutton,19/05/2016,1219159,275.00, WWW.LONDONCOUNCILS.GOV,PENALTY FINE - RESTRICTED ROUTE - VN63 AYE,"Environment, Housing & Regeneration Directorate",Miscellaneous Expenses,F620,
http://statistics.data.gov.uk/id/local-authority/00BF,London Borough of Sutton,19/05/2016,1219159,275.00, WWW.LONDONCOUNCILS.GOV,PENALTY FINE - RESTRICTED ROUTE - VN63 AXX,"Environment, Housing & Regeneration Directorate",Miscellaneous Expenses,F620,
http://statistics.data.gov.uk/id/local-authority/00BF,London Borough of Sutton,10/05/2016,1219159,55.85, TRAILPARTS,WHEEL NEEDED FOR LBS TRAILER - PARKS,"Environment, Housing & Regeneration Directorate",Materials - General,F100,
http://statistics.data.gov.uk/id/local-authority/00BF,London Borough of Sutton,17/05/2016,1219038,50.00, NEW SOUTHERN RAILW,Oyster card top up,HRA,Travelling and Subsistence Allowances,A530,
http://statistics.data.gov.uk/id/local-authority/00BF,London Borough of Sutton,11/05/2016,1219677,299.79, TRAVELODGE WEBSITE,Travelodge Croydon 5 nts,"Environment, Housing & Regeneration Directorate",Bed and Breakfast Accommodation,G400,
http://statistics.data.gov.uk/id/local-authority/00BF,London Borough of Sutton,12/05/2016,1219677,229.54, TRAVELODGE WEBSITE,Travelodge Croydon 4 nts,"Environment, Housing & Regeneration Directorate",Bed and Breakfast Accommodation,G400,
http://statistics.data.gov.uk/id/local-authority/00BF,London Borough of Sutton,16/05/2016,1219677,189.37, TRAVELODGE WEBSITE,Travelodge Croydon 3 nts,"Environment, Housing & Regeneration Directorate",Bed and Breakfast Accommodation,G400,
http://statistics.data.gov.uk/id/local-authority/00BF,London Borough of Sutton,16/05/2016,1219677,59.96, TRAVELODGE WEBSITE,Travelodge Croydon 1 nt,"Environment, Housing & Regeneration Directorate",Bed and Breakfast Accommodation,G400,
http://statistics.data.gov.uk/id/local-authority/00BF,London Borough of Sutton,19/05/2016,1219677,235.08, TRAVELODGE WEBSITE,Travelodge Croydon 4 nts,"Environment, Housing & Regeneration Directorate",Bed and Breakfast Accommodation,G400,
http://statistics.data.gov.uk/id/local-authority/00BF,London Borough of Sutton,23/05/2016,1219677,130.21, TRAVELODGE WEBSITE,Travelodge Croydon 2nts,"Environment, Housing & Regeneration Directorate",Bed and Breakfast Accommodation,G400,
http://statistics.data.gov.uk/id/local-authority/00BF,London Borough of Sutton,07/05/2016,1219003,20.00, OYSTER AUTOTOPUP,Team oyster topup,Chief Executive's Directorate,Travelling and Subsistence Allowances,A530,
http://statistics.data.gov.uk/id/local-authority/00BF,London Borough of Sutton,13/05/2016,1219003,20.00, OYSTER BUS AUTOTOP,Team oyster topup,Chief Executive's Directorate,Travelling and Subsistence Allowances,A530,
http://statistics.data.gov.uk/id/local-authority/00BF,London Borough of Sutton,14/05/2016,1219003,20.00, OYSTER BUS AUTOTOP,Team oyster topup,Chief Executive's Directorate,Travelling and Subsistence Allowances,A530,
http://statistics.data.gov.uk/id/local-authority/00BF,London Borough of Sutton,26/05/2016,1219003,20.00, OYSTER AUTOTOPUP,Team oyster topup,Chief Executive's Directorate,Travelling and Subsistence Allowances,A530,
http://statistics.data.gov.uk/id/local-authority/00BF,London Borough of Sutton,09/05/2016,1219631,286.53, MAILCHIMP,Web hosting,Chief Executive's Directorate,Fees - Computer Software,F384,
http://statistics.data.gov.uk/id/local-authority/00BF,London Borough of Sutton,27/05/2016,1220195,4.99, EBONIUM LTD,Brackets for business support cupboard shelf,Resources Directorate,Repairs to Administrative Equipment,F030,
http://statistics.data.gov.uk/id/local-authority/00BF,London Borough of Sutton,17/05/2016,1220195,33.32, ARGOS RETAIL GROUP,Desk fan for staff,Resources Directorate,Repairs to Administrative Equipment,F030,
http://statistics.data.gov.uk/id/local-authority/00BF,London Borough of Sutton,22/05/2016,1219542,28.66, GODADDY COM EUROPE,Council Website Certificate charge,Chief Executive's Directorate,Fees - Computer Software,F384,
http://statistics.data.gov.uk/id/local-authority/00BF,London Borough of Sutton,24/05/2016,1219636,95.94, LINKEDIN-330*9153003,Monthly recruitment account LinkeIn ongoing,Resources Directorate,Staff Advertising,A500,
http://statistics.data.gov.uk/id/local-authority/00BF,London Borough of Sutton,17/05/2016,1219544,95.94, LINKEDIN-3303023593,month subscrition to recruit lite account,Resources Directorate,Staff Advertising,A500,
http://statistics.data.gov.uk/id/local-authority/00BF,London Borough of Sutton,23/05/2016,1219065,309.17, WDT LONDON,Hire of Chairs for full Council Meeting 23.5.16,Resources Directorate,Special,D535,
http://statistics.data.gov.uk/id/local-authority/00BF,London Borough of Sutton,17/05/2016,1219542,84.96, INTERFLORA BRITISH UNI,Flowers for out going Mayoress & deputy Mayor,Resources Directorate,Materials - General,F100,
http://statistics.data.gov.uk/id/local-authority/00BF,London Borough of Sutton,18/05/2016,1219065,494.50, MAJESTIC WINE,Refreshments for Mayors Reception for Residents of Sutton,Resources Directorate,General Office Expenses,F235,
http://statistics.data.gov.uk/id/local-authority/00BF,London Borough of Sutton,19/05/2016,1219542,10.30, SUTTON EXPRESS,Oyster card top up- The Deputy Leader of the council,Resources Directorate,Members Expenses - Travel and Subsistence,F401,
http://statistics.data.gov.uk/id/local-authority/00BF,London Borough of Sutton,23/05/2016,1219542,20.00, OYSTER RENEW WEB,Oyster card top up- The Deputy Leader of the council,Resources Directorate,Members Expenses - Travel and Subsistence,F401,
http://statistics.data.gov.uk/id/local-authority/00BF,London Borough of Sutton,09/05/2016,1219962,68.95, HelloCanvas,Marketing material for campaign,"Environment, Housing & Regeneration Directorate",Advertising/Publicity (non Staff),F240,
http://statistics.data.gov.uk/id/local-authority/00BF,London Borough of Sutton,29/04/2016,1219962,80.00, WWW.SWGFL.ORG.UK,Marketing material for campaign,"Environment, Housing & Regeneration Directorate",Advertising/Publicity (non Staff),F240,
http://statistics.data.gov.uk/id/local-authority/00BF,London Borough of Sutton,11/05/2016,1219962,11.90, CARVERY EXPRESS,Lunch x 2 for meeting in Watford,"Environment, Housing & Regeneration Directorate",Travelling and Subsistence Allowances,A530,
http://statistics.data.gov.uk/id/local-authority/00BF,London Borough of Sutton,11/05/2016,1219962,11.20, NEW SOUTHERN RAILW,Travel - Watford Meeting,"Environment, Housing & Regeneration Directorate",Travelling and Subsistence Allowances,A530,
http://statistics.data.gov.uk/id/local-authority/00BF,London Borough of Sutton,11/05/2016,1219542,20.00, OYSTER AUTOTOPUP,Oyster card top up - Strategic Director Resources,Resources Directorate,Travelling and Subsistence Allowances,A530,
http://statistics.data.gov.uk/id/local-authority/00BF,London Borough of Sutton,26/05/2016,1219542,20.00, OYSTER AUTOTOPUP,Oyster card top up - Strategic Director Resources,Resources Directorate,Travelling and Subsistence Allowances,A530,
http://statistics.data.gov.uk/id/local-authority/00BF,London Borough of Sutton,29/05/2016,1219542,20.00, OYSTER AUTOTOPUP,Oyster card top up - Strategic Director Resources,Resources Directorate,Travelling and Subsistence Allowances,A530,
http://statistics.data.gov.uk/id/local-authority/00BF,London Borough of Sutton,16/05/2016,1219008,336.98, ARGOS RETAIL GROUP,purchase of cooker & fridge freezer for crisis grant,Resources Directorate,Grants,F473,
http://statistics.data.gov.uk/id/local-authority/00BF,London Borough of Sutton,16/05/2016,1219008,408.92, ARGOS RETAIL GROUP,"purchase of double bed, mattress & fridge freezer for crisis loan",Resources Directorate,Grants,F473,
http://statistics.data.gov.uk/id/local-authority/00BF,London Borough of Sutton,18/05/2016,1219008,98.94, ARGOS RETAIL GROUP,purchase of double mattress for crisis grant,Resources Directorate,Grants,F473,
http://statistics.data.gov.uk/id/local-authority/00BF,London Borough of Sutton,06/05/2016,1219008,339.98, ARGOS RETAIL GROUP,purchase of cooker & fridge freezer for crisis grant,Resources Directorate,Grants,F473,
http://statistics.data.gov.uk/id/local-authority/00BF,London Borough of Sutton,10/05/2016,1219008,119.99, ARGOS RETAIL GROUP,purchase of fridge freezer for crisis grant,Resources Directorate,Grants,F473,
http://statistics.data.gov.uk/id/local-authority/00BF,London Borough of Sutton,11/05/2016,1219008,156.43, ARGOS RETAIL GROUP,purchase of single mattress and bed frame for crisis grant,Resources Directorate,Grants,F473,
http://statistics.data.gov.uk/id/local-authority/00BF,London Borough of Sutton,29/04/2016,1219144,283.32, ARGOS RETAIL GROUP,Crisis Loan & Grants - purchase of bed 26/04/2016,Resources Directorate,Grants,F473,
http://statistics.data.gov.uk/id/local-authority/00BF,London Borough of Sutton,17/05/2016,1219144,205.77, ARGOS RETAIL GROUP,Crisis Loan & Grants - purchase of bed 17/05/2016,Resources Directorate,Grants,F473,
http://statistics.data.gov.uk/id/local-authority/00BF,London Borough of Sutton,03/05/2016,1219631,96.94, ARGOS RETAIL GROUP,CL&G Mattress,Resources Directorate,Grants,F473,
http://statistics.data.gov.uk/id/local-authority/00BF,London Borough of Sutton,03/05/2016,1219631,69.99, ARGOS RETAIL GROUP,Double bed frame,Resources Directorate,Grants,F473,
http://statistics.data.gov.uk/id/local-authority/00BF,London Borough of Sutton,27/05/2016,1219631,308.97, ARGOS RETAIL GROUP,2 x single beds/mattresses,Resources Directorate,Grants,F473,
http://statistics.data.gov.uk/id/local-authority/00BF,London Borough of Sutton,19/05/2016,1219144,"7,317.00", HMCOURTS-SERVICE.G,Application for court summonses 14/04/2016,Resources Directorate,Fees - Other,F299,
http://statistics.data.gov.uk/id/local-authority/00BF,London Borough of Sutton,10/05/2016,1219144,199.95, WWW.192.COM,Payment of search service 10/05/2016,Resources Directorate,Fees - Other,F299,
http://statistics.data.gov.uk/id/local-authority/00BF,London Borough of Sutton,29/05/2016,1219144,40.00, OYSTER AUTOTOPUP,Oyster Autotopup/Oyster card top up 29/05/2016,Resources Directorate,Travelling and Subsistence Allowances,A530,
http://statistics.data.gov.uk/id/local-authority/00BF,London Borough of Sutton,12/05/2016,1219144,40.00, OYSTER AUTOTOPUP,Oyster Autotopup/Oyster Card top up 12/05/2016,Resources Directorate,Travelling and Subsistence Allowances,A530,
http://statistics.data.gov.uk/id/local-authority/00BF,London Borough of Sutton,14/05/2016,1219144,40.00, OYSTER BUS AUTOTOP,Oyster Autotopup/Oyster Card top up 14/05/2016,Resources Directorate,Travelling and Subsistence Allowances,A530,
http://statistics.data.gov.uk/id/local-authority/00BF,London Borough of Sutton,11/05/2016,1219623,132.25, VIRGINTRAINS.CO.UK,Return train ticket for Officer to attend conference in Birmingham,Resources Directorate,General Office Expenses,F235,
http://statistics.data.gov.uk/id/local-authority/00BF,London Borough of Sutton,20/05/2016,1219144,4.00, WWW.MIB.ORG.UK,Search for vehicle insurance details 19/05/2016,Resources Directorate,Insurance Claims,F332,
http://statistics.data.gov.uk/id/local-authority/00BF,London Borough of Sutton,15/04/2016,1219539,111.40, BIG YELLOW S S SUTTON,mental health team clients storage costs,Peoples Services Directorate,Furniture - Purchase,F080,
http://statistics.data.gov.uk/id/local-authority/00BF,London Borough of Sutton,09/05/2016,1219636,28.61, TRAINLINE,Train travel LAC visit staff,Peoples Services Directorate,Travelling and Subsistence Allowances,A530,
http://statistics.data.gov.uk/id/local-authority/00BF,London Borough of Sutton,17/05/2016,1219636,30.04, TRAINLINE,Train travel for visit to client Adult staff,Peoples Services Directorate,Travelling and Subsistence Allowances,A530,
http://statistics.data.gov.uk/id/local-authority/00BF,London Borough of Sutton,17/05/2016,1219636,106.08, TRAINLINE,Train travel for visit to client Adult staff,Peoples Services Directorate,Travelling and Subsistence Allowances,A530,
http://statistics.data.gov.uk/id/local-authority/00BF,London Borough of Sutton,25/05/2016,1219636,25.75, TRAINLINE,Train travel for Assessment Adult staff,Peoples Services Directorate,Travelling and Subsistence Allowances,A530,
http://statistics.data.gov.uk/id/local-authority/00BF,London Borough of Sutton,16/05/2016,1219636,50.80, TRAINLINE,Train travel for Assessment Adult staff,Peoples Services Directorate,Travelling and Subsistence Allowances,A530,
http://statistics.data.gov.uk/id/local-authority/00BF,London Borough of Sutton,12/04/2016,1219539,251.43, TRAINLINE,Transition Team Staff Travel,Peoples Services Directorate,Travelling and Subsistence Allowances,A530,
